{"text_format":"1","workbook":"xlsx","n_sheets":8,"sheets":["Cover","Navigator","Style Guide","Model Parameters","Balance Sheet Example Reminder","Pivoted Multiple Criteria","Unpivoted Multiple Criteria","Error Checks"],"not_rendered":{"charts":0,"images":1,"macros":1,"external_links":0,"defined_names":27,"comments":0,"pivot_tables":0},"unopened":[],"bounds":{"document_bytes":16777216,"sheet_cells":100000,"rows_first":2000,"rows_last":500,"rows_between":2000,"halvings":0,"cell_chars":16384,"cell_head_chars":4096},"cells_cut":0,"cells_raw":0,"read":"whole","date_system":"1900"}

{"sheet":"Cover","index":0,"n_rows":22,"n_cols":7,"rows_kept":22,"cut":false,"hidden":false,"merged":[[16,2,16,9],[17,2,17,9],[20,6,20,8],[21,6,21,8]]}
[]
[]
["Navigator"]
[]
[null,null,{"$f":"Client_Name","v":"SumProduct Pty Ltd"}]
[null,null,{"$f":"Model_Name","v":"SP - INDEX MATCH INDEX Examples.xlsm"}]
[]
[]
[]
[]
[]
[]
[]
[null,null,"Primary Developer:  Liam Bastick"]
[]
[null,null,"General Cover Notes:"]
[null,null,"Looking up data with multiple criteria."]
[]
[]
[]
[null,null,"Any queries, please e-mail:",null,null,null,"liam.bastick@sumproduct.com"]
[null,null,"Website:",null,null,null,"www.sumproduct.com"]

{"sheet":"Navigator","index":1,"n_rows":15,"n_cols":7,"rows_kept":15,"cut":false,"hidden":false,"merged":[]}
["Navigator"]
[{"$f":"Model_Name","v":"SP - INDEX MATCH INDEX Examples.xlsm"}]
["Navigator"]
[null,null,null,null,"Error Checks:",null,{"$f":"Overall_Error_Check","v":0}]
[]
[]
[null,1,"Table of Contents"]
[]
[null,null,null,null,null,"Cover"]
[null,null,null,null,null,"Style Guide"]
[null,null,null,null,null,"Model Parameters"]
[null,null,null,null,null,"Balance Sheet Example Reminder"]
[null,null,null,null,null,"Pivoted Multiple Criteria"]
[null,null,null,null,null,"Unpivoted Multiple Criteria"]
[null,null,null,null,null,"Error Checks"]

{"sheet":"Style Guide","index":2,"n_rows":74,"n_cols":11,"rows_kept":74,"cut":false,"hidden":false,"merged":[[80,2,80,6],[74,2,74,6],[75,2,75,6],[76,2,76,6],[77,2,77,6],[78,2,78,6],[79,2,79,6],[73,2,73,6],[62,2,62,6],[63,2,63,6],[64,2,64,6],[65,2,65,6],[66,2,66,6],[67,2,67,6],[68,2,68,6],[69,2,69,6],[70,2,70,6],[71,2,71,6],[72,2,72,6],[61,2,61,6],[47,2,47,6],[48,2,48,6],[49,2,49,6],[50,2,50,6],[51,2,51,6],[52,2,52,6],[53,2,53,6],[54,2,54,6],[57,2,57,6],[59,2,59,6],[60,2,60,6],[46,2,46,6],[35,2,35,6],[36,2,36,6],[37,2,37,6],[38,2,38,6],[39,2,39,6],[40,2,40,6],[41,2,41,6],[42,2,42,6],[43,2,43,6],[44,2,44,6],[45,2,45,6],[34,2,34,6],[17,2,17,6],[18,2,18,6],[19,2,19,6],[24,2,24,6],[25,2,25,6],[26,2,26,6],[27,2,27,6],[28,2,28,6],[29,2,29,6],[30,2,30,6],[31,2,31,6],[16,2,16,6],[2,0,2,4],[7,2,7,6],[8,2,8,6],[9,2,9,6],[10,2,10,6],[11,2,11,6],[12,2,12,6],[13,2,13,6],[14,2,14,6],[15,2,15,6]]}
[{"$f":"IF(ISERROR(RIGHT(CELL(\"filename\",A1),LEN(CELL(\"filename\",A1))-FIND(\"]\",CELL(\"filename\",A1)))),\n\"\",\nRIGHT(CELL(\"filename\",A1),LEN(CELL(\"filename\",A1))-FIND(\"]\",CELL(\"filename\",A1))))","v":"Style Guide"}]
[{"$f":"Model_Name","v":"SP - INDEX MATCH INDEX Examples.xlsm"}]
["Navigator"]
[null,null,null,null,"Error Checks:",null,null,null,{"$f":"Overall_Error_Check","v":0}]
[]
[null,{"$f":"MAX($B$5:$B5)+1","v":1},"Formatting of Headers / Dividers"]
[]
[null,null,"Description",null,null,null,null,null,"Display",null,"Style Name"]
[]
[null,null,"Sheet Title",null,null,null,null,null,{"$f":"C10","v":"Sheet Title"},null,"Sheet Title"]
[null,null,"Model Name",null,null,null,null,null,{"$f":"C11","v":"Model Name"},null,"Model Name"]
[]
[null,null,"Header 1",null,null,null,null,null,{"$f":"C13","v":"Header 1"},null,"Header 1"]
[null,null,"Header 2",null,null,null,null,null,{"$f":"C14","v":"Header 2"},null,"Header 2"]
[null,null,"Header 3",null,null,null,null,null,{"$f":"C15","v":"Header 3"},null,"Header 3"]
[null,null,"Header 4",null,null,null,null,null,{"$f":"C16","v":"Header 4"},null,"Header 4"]
[]
[null,null,"Notes",null,null,null,null,null,{"$f":"C18","v":"Notes"},null,"Notes"]
[]
[null,null,"Table Heading",null,null,null,null,null,{"$f":"C20","v":"Table Heading"},null,"Table Heading"]
[]
[]
[null,{"$f":"MAX($B$5:$B22)+1","v":2},"Individual Cell Styles"]
[]
[null,null,"Description",null,null,null,null,null,"Display",null,"Style Name"]
[]
[null,null,"Assumption",null,null,null,null,null,"Assumption",null,{"$f":"C27","v":"Assumption"}]
[]
[null,null,"Constraint",null,null,null,null,null,{"$f":"C29","v":"Constraint"},null,{"$f":"C29","v":"Constraint"}]
[]
[null,null,"Empty",null,null,null,null,null,null,null,{"$f":"C31","v":"Empty"}]
[]
[null,null,"Error Check",null,null,null,null,null,0,null,{"$f":"C33","v":"Error Check"}]
[]
[null,null,"Hyperlink",null,null,null,null,null,"Hyperlink",null,{"$f":"C35","v":"Hyperlink"}]
[]
[null,null,"Internal Reference",null,null,null,null,null,{"$f":"'Error Checks'!E12","v":"No checks present"},null,{"$f":"C37","v":"Internal Reference"}]
[]
[null,null,"Line Calculation",null,null,null,null,null,77,null,"Line Calc"]
[]
[null,null,"Line Total",null,null,null,null,null,{"$f":"I39","v":77},null,{"$f":"C41","v":"Line Total"}]
[]
[null,null,"Parameter",null,null,null,null,null,365,null,{"$f":"C43","v":"Parameter"}]
[]
[null,null,"Range Name Description",null,null,null,null,null,"Not_Named",null,{"$f":"C45","v":"Range Name Description"}]
[]
[null,null,"Row Reference",null,null,null,null,null,{"$f":"ROW(C47)","v":47},null,"Row Ref"]
[]
[null,null,"Row Summary",null,null,null,null,null,{"$f":"I41","v":77},null,{"$f":"C49","v":"Row Summary"}]
[]
[null,null,"Units",null,null,null,null,null,"A$",null,{"$f":"C51","v":"Units"}]
[]
[null,null,"WIP",null,null,null,null,null,null,null,{"$f":"C53","v":"WIP"}]
[]
[]
[null,{"$f":"MAX($B$5:$B55)+1","v":3},"Numerical Styles"]
[]
[null,null,"Description",null,null,null,null,null,"Display",null,"Style Name"]
[]
[null,null,"Comma",null,null,null,null,null,123456.789,null,{"$f":"C60","v":"Comma"}]
[]
[null,null,"Comma [0]",null,null,null,null,null,-123456.789,null,"Comma [0]"]
[]
[null,null,"Currency",null,null,null,null,null,123456.789,null,"Currency"]
[]
[null,null,"Currency [0]",null,null,null,null,null,123456.789,null,"Currency [0]"]
[]
[null,null,"Date",null,null,null,null,null,{"$f":"TODAY()","v":"2016-03-19"},null,{"$f":"C68","v":"Date"}]
[]
[null,null,"Date Heading",null,null,null,null,null,{"$f":"TODAY()","v":"2016-03-19"},null,{"$f":"C70","v":"Date Heading"}]
[]
[null,null,"Numbers 0",null,null,null,null,null,-123456.789,null,{"$f":"C72","v":"Numbers 0"}]
[]
[null,null,"Percent",null,null,null,null,null,0.5,null,{"$f":"C74","v":"Percent"}]

{"sheet":"Model Parameters","index":3,"n_rows":31,"n_cols":9,"rows_kept":31,"cut":false,"hidden":false,"merged":[[0,9,0,10],[2,0,2,4],[10,6,10,13],[11,6,11,13]]}
[{"$f":"IF(ISERROR(RIGHT(CELL(\"filename\",A1),LEN(CELL(\"filename\",A1))-FIND(\"]\",CELL(\"filename\",A1)))),\n\"\",\nRIGHT(CELL(\"filename\",A1),LEN(CELL(\"filename\",A1))-FIND(\"]\",CELL(\"filename\",A1))))","v":"Model Parameters"}]
[{"$f":"Model_Name","v":"SP - INDEX MATCH INDEX Examples.xlsm"}]
["Navigator"]
[null,null,null,null,"Error Checks:",null,null,null,{"$f":"Overall_Error_Check","v":0}]
[]
[null,{"$f":"MAX($B$5:$B5)+1","v":1},"General"]
[]
[null,null,"Key Inputs"]
[]
[null,null,null,null,"General"]
[null,null,null,null,"Model Name",null,{"$f":"IF(ISERROR(OR(FIND(\"[\",CELL(\"filename\",A1)),FIND(\"]\",CELL(\"filename\",A1)))),\"\",MID(CELL(\"filename\",A1),FIND(\"[\",CELL(\"filename\",A1))+1,FIND(\"]\",CELL(\"filename\",A1))-FIND(\"[\",CELL(\"filename\",A1))-1))","v":"SP - INDEX MATCH INDEX Examples.xlsm"}]
[null,null,null,null,"Client Name",null,"SumProduct Pty Ltd"]
[]
[]
[null,{"$f":"MAX($B$5:$B14)+1","v":2},"General Range Names"]
[]
[null,null,"Technical Assumptions"]
[]
[null,null,null,null,"Days in Year",null,365]
[null,null,null,null,"Months in Month",null,1]
[null,null,null,null,"Months in Quarter",null,3]
[null,null,null,null,"Months in Half Yr",null,6]
[null,null,null,null,"Months in Year",null,12]
[null,null,null,null,"Quarters in Year",null,4]
[]
[null,null,null,null,"Rounding Accuracy",null,5]
[]
[null,null,null,null,"Very Large Number",null,9.9999999999999997E+98]
[null,null,null,null,"Very Small Number",null,1E-8]
[]
[null,null,null,null,"Thousand",null,1000]

{"sheet":"Balance Sheet Example Reminder","index":4,"n_rows":32,"n_cols":19,"rows_kept":32,"cut":false,"hidden":false,"merged":[[2,0,2,4],[22,8,22,10]]}
[{"$f":"IF(ISERROR(RIGHT(CELL(\"filename\",A1),LEN(CELL(\"filename\",A1))-FIND(\"]\",CELL(\"filename\",A1)))),\n\"\",\nRIGHT(CELL(\"filename\",A1),LEN(CELL(\"filename\",A1))-FIND(\"]\",CELL(\"filename\",A1))))","v":"Balance Sheet Example Reminder"}]
[{"$f":"Model_Name","v":"SP - INDEX MATCH INDEX Examples.xlsm"}]
["Navigator"]
[null,"Error Checks:",null,null,null,{"$f":"Overall_Error_Check","v":0}]
[]
[null,{"$f":"MAX($B$5:$B5)+1","v":1},{"$f":"A1","v":"Balance Sheet Example Reminder"}]
[]
[null,null,"Identifying Misbalances"]
[]
[null,null,null,"Balance Sheet Summary"]
[]
[null,null,null,null,null,null,null,null,null,{"$f":"IF(I$12=\"\",YEAR(TODAY()),I$12+1)","v":2016},{"$f":"IF(J$12=\"\",YEAR(TODAY()),J$12+1)","v":2017},2018,2019,2020,2021,2022,2023,2024,2025]
[]
[null,null,null,null,"Net Assets",null,null,"$m",null,100,110,120,130,140,150,160,170,180,190]
[]
[null,null,null,null,"Total Equity",null,null,"$m",null,100,110,120,130,147,153,153,170,180,199]
[]
[null,null,null,null,null,"Balance Check",null,"[1,0]",null,{"$f":"(ROUND(J14-J16,Rounding_Accuracy)<>0)*1","v":0},0,0,0,1,1,1,0,0,1]
[]
[]
[null,null,null,"Error Message"]
[]
[null,null,null,null,"Error Message",null,null,"Text",{"$f":"IF(N($I$28)=0,\"No errors reported.\",\"The first error reported is in \"&TEXT($I$28,\"0\")&\".\")","v":"The first error reported is in 2020."}]
[]
[]
[null,null,null,"Potential Error Calculations"]
[]
[null,null,null,null,"INDEX MATCH",null,null,"#",{"$f":"INDEX($J$12:$S$12,MATCH(1,$J$18:$S$18,0))","v":2020}]
[]
[null,null,null,null,"LOOKUP",null,null,"#",{"$f":"LOOKUP(1,$J$18:$S$18,$J$12:$S$12)","v":2022}]
[]
[null,null,null,null,"HLOOKUP",null,null,"#",{"$f":"HLOOKUP(1,$J$18:$S$18,-7,FALSE)","v":{"$error":"#VALUE!"}}]

{"sheet":"Pivoted Multiple Criteria","index":5,"n_rows":27,"n_cols":9,"rows_kept":27,"cut":false,"hidden":false,"merged":[[2,0,2,4]]}
[{"$f":"IF(ISERROR(RIGHT(CELL(\"filename\",A1),LEN(CELL(\"filename\",A1))-FIND(\"]\",CELL(\"filename\",A1)))),\n\"\",\nRIGHT(CELL(\"filename\",A1),LEN(CELL(\"filename\",A1))-FIND(\"]\",CELL(\"filename\",A1))))","v":"Pivoted Multiple Criteria"}]
[{"$f":"Model_Name","v":"SP - INDEX MATCH INDEX Examples.xlsm"}]
["Navigator"]
[null,"Error Checks:",null,null,null,{"$f":"Overall_Error_Check","v":0}]
[]
[null,{"$f":"MAX($B$5:$B5)+1","v":1},{"$f":"A1","v":"Pivoted Multiple Criteria"}]
[]
[null,null,"Car Sales Data"]
[]
[null,null,null,"Illustration"]
[]
[null,null,null,null,null,"Company","Revenue","Costs","Profit"]
[null,null,null,null,null,"11-7",177,98,79]
[null,null,null,null,null,"Ashtré",231,166,65]
[null,null,null,null,null,"Guggle",196,97,99]
[null,null,null,null,null,"iGrapple",311,244,67]
[null,null,null,null,null,"McDonnells",149,112,37]
[null,null,null,null,null,"Microhard",288,107,181]
[null,null,null,null,null,"Worst Buy",166,107,59]
[]
[]
[null,null,null,"Lookup Information"]
[]
[null,null,null,null,null,{"$f":"F12","v":"Company"},"iGrapple"]
[null,null,null,null,null,"Amount","Costs"]
[]
[null,null,null,null,null,{"$f":"G25","v":"Costs"},{"$f":"INDEX($G$13:$I$19,MATCH($G$24,$F$13:$F$19,0),MATCH($G$25,$G$12:$I$12,0))","v":244}]

{"sheet":"Unpivoted Multiple Criteria","index":6,"n_rows":41,"n_cols":9,"rows_kept":41,"cut":false,"hidden":false,"merged":[[2,0,2,4]]}
[{"$f":"IF(ISERROR(RIGHT(CELL(\"filename\",A1),LEN(CELL(\"filename\",A1))-FIND(\"]\",CELL(\"filename\",A1)))),\n\"\",\nRIGHT(CELL(\"filename\",A1),LEN(CELL(\"filename\",A1))-FIND(\"]\",CELL(\"filename\",A1))))","v":"Unpivoted Multiple Criteria"}]
[{"$f":"Model_Name","v":"SP - INDEX MATCH INDEX Examples.xlsm"}]
["Navigator"]
[null,"Error Checks:",null,null,null,{"$f":"Overall_Error_Check","v":0}]
[]
[null,{"$f":"MAX($B$5:$B5)+1","v":1},{"$f":"A1","v":"Unpivoted Multiple Criteria"}]
[]
[null,null,"Car Sales Data"]
[]
[null,null,null,"Illustration"]
[]
[null,null,null,null,null,"Month","Car","Colour","Code"]
[null,null,null,null,null,"January","Opal","Red","ABC001"]
[null,null,null,null,null,"January","Opal","Blue","ABC002"]
[null,null,null,null,null,"January","Fjord","Red","ABC003"]
[null,null,null,null,null,"January","Fjord","Blue","ABC004"]
[null,null,null,null,null,"January","Nexus","Red","ABC005"]
[null,null,null,null,null,"January","Nexus","Blue","ABC006"]
[null,null,null,null,null,"February","Opal","Red","ABC007"]
[null,null,null,null,null,"February","Opal","Blue","ABC008"]
[null,null,null,null,null,"February","Fjord","Red","ABC009"]
[null,null,null,null,null,"February","Fjord","Blue","ABC010"]
[null,null,null,null,null,"February","Nexus","Red","ABC011"]
[null,null,null,null,null,"February","Nexus","Blue","ABC012"]
[null,null,null,null,null,"March","Opal","Red","ABC013"]
[null,null,null,null,null,"March","Opal","Blue","ABC014"]
[null,null,null,null,null,"March","Fjord","Red","ABC015"]
[null,null,null,null,null,"March","Fjord","Blue","ABC016"]
[null,null,null,null,null,"March","Nexus","Red","ABC017"]
[null,null,null,null,null,"March","Nexus","Blue","ABC018"]
[]
[]
[null,null,null,"Lookup Information"]
[]
[null,null,null,null,null,{"$f":"F12","v":"Month"},"February"]
[null,null,null,null,null,{"$f":"G12","v":"Car"},"Fjord"]
[null,null,null,null,null,{"$f":"H12","v":"Colour"},"Blue"]
[]
[null,null,null,null,null,{"$f":"I12","v":"Code"},{"$f":"INDEX($I$13:$I$30,MATCH($G$35&$G$36&$G$37,$F$13:$F$30&$G$13:$G$30&$H$13:$H$30,0))","v":"ABC010"}]
[]
[null,null,null,null,null,{"$f":"I12","v":"Code"},{"$f":"INDEX($I$13:$I$30,MATCH($G$35&$G$36&$G$37,INDEX($F$13:$F$30&$G$13:$G$30&$H$13:$H$30,0),0))","v":"ABC010"}]

{"sheet":"Error Checks","index":7,"n_rows":17,"n_cols":9,"rows_kept":17,"cut":false,"hidden":false,"merged":[[0,8,0,9],[2,0,2,4]]}
[{"$f":"IF(ISERROR(RIGHT(CELL(\"filename\",A1),LEN(CELL(\"filename\",A1))-FIND(\"]\",CELL(\"filename\",A1)))),\n\"\",\nRIGHT(CELL(\"filename\",A1),LEN(CELL(\"filename\",A1))-FIND(\"]\",CELL(\"filename\",A1))))","v":"Error Checks"}]
[{"$f":"Model_Name","v":"SP - INDEX MATCH INDEX Examples.xlsm"}]
["Navigator"]
[null,"Error Checks:",null,null,null,{"$f":"Overall_Error_Check","v":0}]
[]
[null,{"$f":"MAX($B$5:$B5)+1","v":1},"Error Checks"]
[]
[null,null,"Summary of Errors"]
[]
[null,null,null,"Assumptions"]
[]
[null,null,null,null,"No checks present"]
[]
[]
[]
[]
[null,null,null,null,{"$f":"C8","v":"Summary of Errors"},null,null,null,{"$f":"MIN(1,SUM(I11:I15))","v":0}]